[Event "European School-ch 2019"]
[Site "Mamaia"]
[Date "2019.05.31"]
[Round "1.28"]
[White "Zheng, Harry Z"]
[Black "Albu, Vlad"]
[Result "1-0"]
[ECO "B90"]
[WhiteElo "1556"]
[BlackElo "1081"]
[Annotator "NA"]
[PlyCount "87"]
[EventDate "2019.05.31"]
[EventType "swiss"]
[EventCountry "ROU"]
[SourceTitle "playchess.com"]
[Source "ChessBase"]
[SourceQuality "1"]
[TimeControl "40/5400+30:1800+30"]

1. e4 {[%emt 0:00:00]} c5 {[%emt 0:00:00]} 2. Nf3 {[%emt 0:00:00]} d6 {[%emt 0:00:00]} 3. d4 {[%emt 0:00:06]} cxd4 {[%emt 0:00:00]} 4. Nxd4 {[%emt 0:00:19]} Nf6 {[%emt 0:00:00]} 5. Nc3 {[%emt 0:00:19]} a6 {[%emt 0:00:00]} 6. Be3 {[%emt 0:01:01]} Ng4 {[%emt 0:00:45]} 7. Bg5 {[%emt 0:01:44]} Qb6 {[%emt 0:00:15]} 8. Nd5 {[%emt 0:14:12]} Qd8 {[%emt 0:02:12]} 9. f3 Nf6 {[%emt 0:03:05]} 10. Nc3 {[%emt 0:03:08]} Nc6 {[%emt 0:00:54]} 11. Be3 {[%emt 0:01:45]} Nxd4 {[%emt 0:00:13]} 12. Bxd4 {[%emt 0:00:15]} e5 {[%emt 0:00:03]} 13. Be3 {[%emt 0:00:56]} Be7 {[%emt 0:00:40]} 14. Qd2 {[%emt 0:04:29]} Be6 {[%emt 0:00:30]} 15. Rd1 {[%emt 0:07:32]} Qc7 {[%emt 0:00:17]} 16. Be2 {[%emt 0:01:39]} Rd8 {[%emt 0:00:26]} 17. O-O {[%emt 0:05:35]} d5 {[%emt 0:00:31]} 18. exd5 {[%emt 0:00:56]} Bxd5 {[%emt 0:00:26]} 19. Qe1 {[%emt 0:02:03]} O-O {[%emt 0:00:13]} 20. Qf2 {[%emt 0:01:52]} Bc6 {[%emt 0:00:52]} 21. Bb6 {[%emt 0:02:31]} Qc8 {[%emt 0:03:39]} 22. Bxd8 {[%emt 0:01:31]} Rxd8 {[%emt 0:00:20]} 23. Rxd8+ {[%emt 0:00:21]} Qxd8 {[%emt 0:00:08]} 24. Rd1 {[%emt 0:00:56]} b6 {[%emt 0:00:33]} 25. Rxd8+ {[%emt 0:00:10]} Bxd8 {[%emt 0:00:04]} 26. Kh1 {[%emt 0:00:51]} Kf8 {[%emt 0:00:47]} 27. Bxa6 {[%emt 0:00:18]} g5 {[%emt 0:00:08]} 28. Qd2 {[%emt 0:00:43]} Ke7 {[%emt 0:00:09]} 29. Qxg5 {[%emt 0:01:31]} Kd7 {[%emt 0:01:00]} 30. Qxe5 {[%emt 0:01:20]} Ne8 {[%emt 0:00:30]} 31. Bb5 {[%emt 0:00:57]} Bxb5 {[%emt 0:00:24]} 32. Qxb5+ {[%emt 0:00:17]} Ke7 {[%emt 0:00:04]} 33. Nd5+ {[%emt 0:01:53]} Kf8 {[%emt 0:00:10]} 34. Qb4+ {[%emt 0:00:27]} Kg8 {[%emt 0:00:08]} 35. Nxb6 {[%emt 0:00:33]} h5 {[%emt 0:00:11]} 36. Nd7 {[%emt 0:00:20]} Kh7 {[%emt 0:00:42]} 37. Qf8 {[%emt 0:00:18]} Ng7 {[%emt 0:00:07]} 38. Qxd8 {[%emt 0:00:12]} Ne6 {[%emt 0:00:23]} 39. Qf6 {[%emt 0:01:10]} Ng7 {[%emt 0:00:07]} 40. Qxf7 {[%emt 0:00:42]} h4 {[%emt 0:00:10]} 41. Nf8+ {[%emt 0:30:57]} Kh8 {[%emt 0:30:06]} 42. Qg6 {[%emt 0:00:46]} Kg8 {[%emt 0:00:04]} 43. Ne6 {[%emt 0:00:22]} h3 {[%emt 0:00:10]} 44. Qxg7# 1-0

[Event "European School-ch 2019"]
[Site "Mamaia"]
[Date "2019.05.31"]
[Round "1.29"]
[White "Berestean, Vlaicu"]
[Black "Durucay, Uygar"]
[Result "0-1"]
[ECO "B01"]
[WhiteElo "1074"]
[BlackElo "1517"]
[Annotator "NA"]
[PlyCount "68"]
[EventDate "2019.05.31"]
[EventType "swiss"]
[EventCountry "ROU"]
[SourceTitle "playchess.com"]
[Source "ChessBase"]
[SourceQuality "1"]
[TimeControl "40/5400+30:1800+30"]

1. e4 {[%emt 0:00:00]} d5 {[%emt 0:00:00]} 2. exd5 {[%emt 0:00:00]} Qxd5 {[%emt 0:00:08]} 3. Nc3 {[%emt 0:00:00]} Qa5 {[%emt 0:00:39]} 4. d4 {[%emt 0:00:31]} c6 {[%emt 0:00:32]} 5. Bd2 {[%emt 0:00:43]} Qc7 {[%emt 0:00:40]} 6. Nf3 {[%emt 0:01:27]} Nf6 {[%emt 0:01:24]} 7. Be2 {[%emt 0:02:42]} Bf5 {[%emt 0:02:36]} 8. O-O {[%emt 0:00:33]} e6 {[%emt 0:01:31]} 9. Re1 {[%emt 0:07:38]} Bd6 {[%emt 0:06:57]} 10. h3 {[%emt 0:03:08]} O-O {[%emt 0:03:52]} 11. Be3 {[%emt 0:02:57]} Nbd7 {[%emt 0:03:21]} 12. Qd2 {[%emt 0:01:23]} Rfd8 {[%emt 0:01:17]} 13. Rad1 {[%emt 0:01:48]} a6 {[%emt 0:00:53]} 14. Qc1 {[%emt 0:00:44]} b5 {[%emt 0:00:53]} 15. a3 {[%emt 0:05:21]} Rac8 {[%emt 0:04:26]} 16. b4 {[%emt 0:01:15]} e5 {[%emt 0:01:24]} 17. dxe5 {[%emt 0:03:48]} Nxe5 {[%emt 0:00:25]} 18. Nh4 {[%emt 0:06:31]} Be6 {[%emt 0:01:41]} 19. f4 {[%emt 0:01:36]} Nc4 {[%emt 0:00:46]} 20. Bxc4 {[%emt 0:03:38]} Bxc4 {[%emt 0:01:16]} 21. Nf5 {[%emt 0:02:43]} Bd5 {[%emt 0:01:29]} 22. Nxd6 {[%emt 0:01:49]} Rxd6 {[%emt 0:03:12]} 23. Bc5 {[%emt 0:00:50]} Rd7 {[%emt 0:00:32]} 24. Re3 {[%emt 0:02:03]} Rcd8 {[%emt 0:00:59]} 25. Rde1 {[%emt 0:00:53]} Be6 {[%emt 0:00:42]} 26. f5 {[%emt 0:01:23]} Bxf5 {[%emt 0:01:49]} 27. g4 {[%emt 0:00:34]} Be6 {[%emt 0:00:22]} 28. g5 {[%emt 0:01:30]} Nd5 {[%emt 0:01:19]} 29. Nxd5 {[%emt 0:00:20]} Rxd5 {[%emt 0:00:07]} 30. Rf3 {[%emt 0:03:01]} Rd2 {[%emt 0:01:02]} 31. Rf2 {[%emt 0:02:09]} Qg3+ {[%emt 0:00:12]} 32. Kh1 {[%emt 0:03:01]} Bd5+ {[%emt 0:00:11]} 33. Re4 {[%emt 0:01:20]} Bxe4+ {[%emt 0:00:23]} 34. Rf3 {[%emt 0:00:25]} Bxf3# {[%emt 0:00:13]} 0-1

[Event "European School-ch 2019"]
[Site "Mamaia"]
[Date "2019.05.31"]
[Round "1.30"]
[White "Yasmo, Daniil"]
[Black "Savu, Victor-Xavier"]
[Result "1-0"]
[ECO "D00"]
[WhiteElo "1424"]
[BlackElo "1047"]
[Annotator "NA"]
[PlyCount "119"]
[EventDate "2019.05.31"]
[EventType "swiss"]
[EventCountry "ROU"]
[SourceTitle "playchess.com"]
[Source "ChessBase"]
[SourceQuality "1"]
[TimeControl "40/5400+30:1800+30"]

1. d4 {[%emt 0:00:00]} d5 {[%emt 0:00:00]} 2. Bf4 {[%emt 0:00:00]} Nf6 {[%emt 0:00:00]} 3. e3 {[%emt 0:00:05]} c5 {[%emt 0:00:00]} 4. c3 {[%emt 0:00:58]} Nc6 {[%emt 0:00:13]} 5. Nd2 {[%emt 0:01:08]} Qb6 {[%emt 0:00:23]} 6. Qb3 {[%emt 0:00:40]} c4 {[%emt 0:00:20]} 7. Qc2 {[%emt 0:02:01]} g6 {[%emt 0:00:38]} 8. e4 {[%emt 0:15:18]} dxe4 {[%emt 0:00:56]} 9. Nxc4 {[%emt 0:02:04]} Qd8 {[%emt 0:00:27]} 10. Ne2 {[%emt 0:04:51]} Bf5 {[%emt 0:00:24]} 11. Ne3 {[%emt 0:00:51]} Bd7 {[%emt 0:00:19]} 12. Ng3 {[%emt 0:01:57]} Bc8 {[%emt 0:00:58]} 13. Nxe4 {[%emt 0:12:28]} Qb6 {[%emt 0:00:43]} 14. Nxf6+ {[%emt 0:00:20]} exf6 {[%emt 0:00:12]} 15. Nd5 {[%emt 0:02:14]} Qd8 {[%emt 0:00:26]} 16. Nc7+ {[%emt 0:00:51]} Ke7 {[%emt 0:00:07]} 17. Nxa8 {[%emt 0:00:42]} g5 {[%emt 0:00:12]} 18. Bg3 {[%emt 0:01:05]} f5 {[%emt 0:00:12]} 19. h3 {[%emt 0:00:35]} f4 {[%emt 0:00:07]} 20. Bh2 {[%emt 0:00:07]} Be6 {[%emt 0:00:14]} 21. Qe4 {[%emt 0:00:46]} f5 {[%emt 0:00:42]} 22. Qe2 {[%emt 0:00:33]} Qxa8 {[%emt 0:00:16]} 23. d5 {[%emt 0:00:26]} Qc8 {[%emt 0:01:41]} 24. Qxe6+ {[%emt 0:00:22]} Qxe6+ {[%emt 0:00:10]} 25. dxe6 {[%emt 0:00:06]} Kxe6 {[%emt 0:00:11]} 26. Bc4+ {[%emt 0:00:11]} Kd7 {[%emt 0:00:32]} 27. Rd1+ {[%emt 0:00:20]} Bd6 {[%emt 0:00:19]} 28. O-O {[%emt 0:01:32]} Ne5 {[%emt 0:00:22]} 29. Bb5+ {[%emt 0:00:18]} Kc7 {[%emt 0:00:11]} 30. Rfe1 {[%emt 0:01:14]} a6 {[%emt 0:00:44]} 31. Bf1 {[%emt 0:00:22]} h5 {[%emt 0:00:23]} 32. Be2 {[%emt 0:01:34]} h4 {[%emt 0:01:02]} 33. f3 {[%emt 0:01:42]} b6 {[%emt 0:01:30]} 34. Kf1 {[%emt 0:00:44]} Rd8 {[%emt 0:00:58]} 35. Bg1 {[%emt 0:00:22]} b5 {[%emt 0:00:32]} 36. Bd4 {[%emt 0:00:24]} Nf7 {[%emt 0:00:46]} 37. Bd3 {[%emt 0:00:46]} Nh6 {[%emt 0:00:59]} 38. Bf6 {[%emt 0:00:54]} Rg8 {[%emt 0:00:23]} 39. Be7 {[%emt 0:00:16]} g4 {[%emt 0:00:52]} 40. Bxd6+ {[%emt 0:00:14]} Kxd6 {[%emt 0:00:38]} 41. Bc4+ {[%emt 0:30:25]} Kc5 {[%emt 0:30:18]} 42. Bxg8 {[%emt 0:00:10]} Nxg8 {[%emt 0:00:32]} 43. fxg4 {[%emt 0:00:22]} fxg4 {[%emt 0:00:37]} 44. hxg4 {[%emt 0:00:09]} Nh6 {[%emt 0:00:22]} 45. g5 {[%emt 0:00:09]} Ng4 {[%emt 0:00:07]} 46. Kg1 {[%emt 0:00:14]} a5 {[%emt 0:00:10]} 47. g6 {[%emt 0:00:08]} Nf6 {[%emt 0:00:06]} 48. Re5+ {[%emt 0:00:18]} Kc6 {[%emt 0:00:16]} 49. Re6+ {[%emt 0:00:10]} Kc5 {[%emt 0:00:04]} 50. Rxf6 {[%emt 0:00:07]} a4 {[%emt 0:00:17]} 51. Rdd6 {[%emt 0:00:34]} a3 {[%emt 0:00:08]} 52. b4+ {[%emt 0:00:35]} Kc4 {[%emt 0:00:15]} 53. Rxf4+ {[%emt 0:00:24]} Kxc3 {[%emt 0:00:07]} 54. Rd8 {[%emt 0:00:30]} Kc2 {[%emt 0:00:00]} 55. Rd3 {[%emt 0:00:02]} h3 {[%emt 0:00:00]} 56. Rdf3 {[%emt 0:00:09]} Kd2 {[%emt 0:00:06]} 57. gxh3 {[%emt 0:00:16]} Ke2 {[%emt 0:00:07]} 58. Rg4 {[%emt 0:00:11]} Ke1 {[%emt 0:00:13]} 59. Rb3 {[%emt 0:00:23]} Kd1 {[%emt 0:00:03]} 60. Rg2 {[%emt 0:02:15]} 1-0

[Event "European School-ch 2019"]
[Site "Mamaia"]
[Date "2019.05.31"]
[Round "1.31"]
[White "Batozhargalov, Erdem"]
[Black "Karimli, Yusif"]
[Result "0-1"]
[ECO "C10"]
[WhiteElo "1037"]
[BlackElo "1401"]
[Annotator "NA"]
[PlyCount "70"]
[EventDate "2019.05.31"]
[EventType "swiss"]
[EventCountry "ROU"]
[SourceTitle "playchess.com"]
[Source "ChessBase"]
[SourceQuality "1"]
[TimeControl "40/5400+30:1800+30"]

1. e4 {[%emt 0:00:00]} e6 {[%emt 0:00:00]} 2. d4 {[%emt 0:00:00]} d5 {[%emt 0:00:00]} 3. Nd2 {[%emt 0:00:00]} dxe4 {[%emt 0:00:22]} 4. Nxe4 {[%emt 0:00:00]} Bd7 {[%emt 0:00:21]} 5. Nf3 {[%emt 0:00:36]} Bc6 {[%emt 0:00:36]} 6. Bd3 {[%emt 0:02:16]} Nd7 {[%emt 0:00:43]} 7. O-O {[%emt 0:00:42]} Ngf6 {[%emt 0:02:39]} 8. Bg5 {[%emt 0:01:03]} Be7 {[%emt 0:00:36]} 9. Nxf6+ {[%emt 0:00:33]} Bxf6 {[%emt 0:00:42]} 10. Bxf6 {[%emt 0:00:09]} Qxf6 {[%emt 0:00:58]} 11. c3 {[%emt 0:01:02]} Bxf3 {[%emt 0:04:55]} 12. Qxf3 {[%emt 0:00:12]} Qxf3 {[%emt 0:01:17]} 13. gxf3 {[%emt 0:00:10]} O-O-O {[%emt 0:03:59]} 14. b4 {[%emt 0:03:11]} Nf6 {[%emt 0:01:44]} 15. Be4 {[%emt 0:08:11]} Nd5 {[%emt 0:02:12]} 16. Bxd5 {[%emt 0:00:12]} Rxd5 {[%emt 0:02:43]} 17. a4 {[%emt 0:00:36]} Rhd8 {[%emt 0:03:37]} 18. Rfe1 {[%emt 0:06:21]} c6 {[%emt 0:04:37]} 19. Re4 {[%emt 0:13:25]} a5 {[%emt 0:03:43]} 20. Rb1 {[%emt 0:04:16]} Kc7 {[%emt 0:04:21]} 21. Kf1 {[%emt 0:05:18]} b6 {[%emt 0:09:12]} 22. Rg4 {[%emt 0:03:08]} g6 {[%emt 0:04:51]} 23. Re4 {[%emt 0:03:58]} Rf5 {[%emt 0:06:35]} 24. Ke2 {[%emt 0:02:33]} axb4 {[%emt 0:05:24]} 25. Rxb4 Rh5 {[%emt 0:08:15]} 26. h4 {[%emt 0:01:21]} Ra8 {[%emt 0:02:59]} 27. Kd3 {[%emt 0:02:48]} Rha5 {[%emt 0:00:45]} 28. Re5 {[%emt 0:03:16]} Rxa4 {[%emt 0:01:09]} 29. Rxa4 {[%emt 0:00:38]} Rxa4 {[%emt 0:00:06]} 30. Re4 {[%emt 0:01:57]} Kd6 {[%emt 0:00:45]} 31. Rf4 {[%emt 0:02:33]} f5 {[%emt 0:00:08]} 32. c4 {[%emt 0:02:43]} h6 {[%emt 0:00:26]} 33. c5+ {[%emt 0:00:23]} Kc7 {[%emt 0:00:30]} 34. d5 {[%emt 0:00:58]} Rxf4 {[%emt 0:00:10]} 35. cxb6+ {[%emt 0:00:16]} Kxb6 {[%emt 0:00:18]} 0-1

[Event "European School-ch 2019"]
[Site "Mamaia"]
[Date "2019.05.31"]
[Round "1.41"]
[White "Mgeladze, Kesaria"]
[Black "Ismayilova, Salbinaz"]
[Result "1-0"]
[ECO "C25"]
[WhiteElo "1336"]
[BlackElo "1003"]
[Annotator "NA"]
[PlyCount "61"]
[EventDate "2019.05.31"]
[EventType "swiss"]
[EventCountry "ROU"]
[SourceTitle "playchess.com"]
[Source "ChessBase"]
[SourceQuality "1"]
[TimeControl "40/5400+30:1800+30"]

1. e4 {[%emt 0:00:00]} e5 {[%emt 0:00:00]} 2. Nc3 {[%emt 0:00:00]} Be7 {[%emt 0:00:06]} 3. g3 {[%emt 0:00:13]} Nf6 {[%emt 0:00:13]} 4. Bg2 {[%emt 0:00:13]} O-O {[%emt 0:00:11]} 5. Nge2 {[%emt 0:00:30]} Nc6 {[%emt 0:00:19]} 6. O-O {[%emt 0:00:29]} d6 {[%emt 0:00:30]} 7. d4 {[%emt 0:00:35]} exd4 {[%emt 0:01:49]} 8. Nxd4 {[%emt 0:00:16]} Bg4 {[%emt 0:02:19]} 9. f3 {[%emt 0:02:01]} Nxd4 {[%emt 0:04:04]} 10. Qxd4 {[%emt 0:00:24]} Be6 {[%emt 0:01:07]} 11. f4 {[%emt 0:02:11]} c5 {[%emt 0:01:26]} 12. Qd1 {[%emt 0:01:09]} h6 {[%emt 0:06:51]} 13. f5 {[%emt 0:01:17]} Bc4 {[%emt 0:00:17]} 14. Re1 {[%emt 0:00:26]} Re8 {[%emt 0:00:24]} 15. Bf4 {[%emt 0:03:38]} Qb6 {[%emt 0:00:45]} 16. Qd2 {[%emt 0:05:25]} Rad8 {[%emt 0:00:33]} 17. h3 {[%emt 0:04:19]} Rd7 {[%emt 0:04:26]} 18. a3 {[%emt 0:06:16]} Kh7 {[%emt 0:08:12]} 19. g4 {[%emt 0:01:12]} Bb5 {[%emt 0:00:21]} 20. Kh1 {[%emt 0:04:26]} Bd8 {[%emt 0:08:09]} 21. Bf3 {[%emt 0:04:03]} Bc6 {[%emt 0:04:33]} 22. h4 {[%emt 0:01:21]} Bc7 {[%emt 0:01:56]} 23. g5 {[%emt 0:00:41]} hxg5 {[%emt 0:05:08]} 24. hxg5 {[%emt 0:00:04]} Ng4 {[%emt 0:05:30]} 25. Bxg4 {[%emt 0:00:51]} Kg8 {[%emt 0:08:35]} 26. g6 {[%emt 0:02:33]} fxg6 27. fxg6 {[%emt 0:00:06]} Rdd8 {[%emt 0:03:02]} 28. Qh2 {[%emt 0:01:03]} Qxb2 {[%emt 0:01:06]} 29. Qh7+ {[%emt 0:00:07]} Kf8 {[%emt 0:00:10]} 30. Qh8+ {[%emt 0:00:05]} Ke7 {[%emt 0:01:16]} 31. Qxg7# {[%emt 0:00:06]} 1-0

[Event "European School-ch 2019"]
[Site "Mamaia"]
[Date "2019.05.31"]
[Round "1.45"]
[White "Zhapova, Yana"]
[Black "Andries, Alexia"]
[Result "1-0"]
[ECO "B41"]
[WhiteElo "1864"]
[BlackElo "1287"]
[Annotator "NA"]
[PlyCount "109"]
[EventDate "2019.05.31"]
[EventType "swiss"]
[EventCountry "ROU"]
[SourceTitle "playchess.com"]
[Source "ChessBase"]
[SourceQuality "1"]
[TimeControl "40/5400+30:1800+30"]

1. e4 {[%emt 0:00:00]} c5 {[%emt 0:00:00]} 2. Nf3 {[%emt 0:00:00]} e6 {[%emt 0:00:20]} 3. d4 {[%emt 0:00:48]} cxd4 {[%emt 0:00:17]} 4. Nxd4 {[%emt 0:00:11]} a6 {[%emt 0:00:35]} 5. c4 {[%emt 0:01:08]} Qc7 {[%emt 0:00:34]} 6. Nc3 {[%emt 0:01:05]} Nf6 {[%emt 0:00:39]} 7. Qd3 {[%emt 0:00:51]} Be7 {[%emt 0:01:18]} 8. Qg3 {[%emt 0:03:14]} Qxg3 {[%emt 0:00:38]} 9. hxg3 {[%emt 0:00:10]} Bb4 {[%emt 0:01:36]} 10. f3 {[%emt 0:07:36]} Nc6 {[%emt 0:03:50]} 11. Nxc6 {[%emt 0:04:37]} dxc6 {[%emt 0:02:55]} 12. Be3 {[%emt 0:07:44]} Bd7 {[%emt 0:02:42]} 13. Kf2 {[%emt 0:04:04]} h6 {[%emt 0:06:41]} 14. Rd1 {[%emt 0:04:13]} b5 {[%emt 0:04:53]} 15. e5 {[%emt 0:04:38]} Ng8 {[%emt 0:04:30]} 16. Ne4 {[%emt 0:00:54]} Rd8 {[%emt 0:02:05]} 17. Bb6 {[%emt 0:02:35]} Rb8 {[%emt 0:00:29]} 18. c5 {[%emt 0:04:53]} Ne7 {[%emt 0:02:04]} 19. a3 {[%emt 0:01:09]} Nd5 {[%emt 0:00:32]} 20. axb4 {[%emt 0:00:20]} Nxb6 {[%emt 0:00:35]} 21. cxb6 {[%emt 0:00:19]} Rxb6 {[%emt 0:00:24]} 22. Nc5 {[%emt 0:00:46]} Bc8 {[%emt 0:00:18]} 23. Bd3 {[%emt 0:00:24]} Ke7 {[%emt 0:00:18]} 24. Be4 {[%emt 0:00:35]} Rd8 {[%emt 0:00:22]} 25. Rxd8 {[%emt 0:00:59]} Kxd8 {[%emt 0:00:09]} 26. Rd1+ {[%emt 0:00:06]} Ke7 {[%emt 0:00:05]} 27. Rd6 {[%emt 0:01:21]} f6 {[%emt 0:00:40]} 28. Rxc6 {[%emt 0:00:12]} Rxc6 {[%emt 0:01:57]} 29. Bxc6 {[%emt 0:00:10]} fxe5 {[%emt 0:00:12]} 30. Bb7 {[%emt 0:00:41]} Bxb7 {[%emt 0:00:31]} 31. Nxb7 {[%emt 0:00:09]} Kd7 {[%emt 0:00:05]} 32. Ke3 {[%emt 0:02:00]} Kc6 {[%emt 0:00:14]} 33. Nc5 {[%emt 0:00:09]} Kd5 {[%emt 0:06:19]} 34. Nxa6 {[%emt 0:00:29]} g5 {[%emt 0:00:41]} 35. b3 {[%emt 0:00:27]} h5 {[%emt 0:00:19]} 36. Nc7+ {[%emt 0:00:10]} Kc6 {[%emt 0:00:19]} 37. Nxe6 {[%emt 0:00:09]} Kd6 {[%emt 0:00:14]} 38. Nxg5 {[%emt 0:00:13]} Ke7 {[%emt 0:00:43]} 39. Ke4 {[%emt 0:00:28]} Kf6 {[%emt 0:00:40]} 40. f4 {[%emt 0:00:10]} exf4 {[%emt 0:00:09]} 41. gxf4 {[%emt 0:30:13]} h4 {[%emt 0:30:32]} 42. Nf3 {[%emt 0:00:06]} Ke6 {[%emt 0:00:20]} 43. Nxh4 {[%emt 0:00:09]} Kf6 {[%emt 0:00:33]} 44. g4 {[%emt 0:00:13]} Kg7 {[%emt 0:00:07]} 45. g5 {[%emt 0:00:11]} Kf7 {[%emt 0:00:35]} 46. f5 {[%emt 0:00:11]} Kg7 {[%emt 0:00:20]} 47. f6+ {[%emt 0:00:08]} Kf7 {[%emt 0:00:13]} 48. Kf5 {[%emt 0:00:07]} Kg8 {[%emt 0:00:06]} 49. g6 {[%emt 0:00:57]} Kf8 {[%emt 0:00:46]} 50. g7+ {[%emt 0:00:29]} Kg8 {[%emt 0:00:06]} 51. Ng6 {[%emt 0:00:11]} Kf7 {[%emt 0:00:27]} 52. Ne7 {[%emt 0:00:09]} Ke8 {[%emt 0:00:12]} 53. g8=Q+ {[%emt 0:00:29]} Kd7 {[%emt 0:00:08]} 54. Qc8+ {[%emt 0:00:27]} Kd6 {[%emt 0:00:53]} 55. Qc6# {[%emt 0:00:11]} 1-0

[Event "European School-ch 2019"]
[Site "Mamaia"]
[Date "2019.05.31"]
[Round "1.46"]
[White "Hristova, Ivelina"]
[Black "Babic, Masa"]
[Result "0-1"]
[ECO "B13"]
[WhiteElo "1276"]
[BlackElo "1715"]
[Annotator "NA"]
[PlyCount "108"]
[EventDate "2019.05.31"]
[EventType "swiss"]
[EventCountry "ROU"]
[SourceTitle "playchess.com"]
[Source "ChessBase"]
[SourceQuality "1"]
[TimeControl "40/5400+30:1800+30"]

1. e4 {[%emt 0:00:00]} c6 {[%emt 0:00:00]} 2. d4 {[%emt 0:00:00]} d5 {[%emt 0:00:00]} 3. exd5 {[%emt 0:00:00]} cxd5 {[%emt 0:00:00]} 4. Bd3 {[%emt 0:00:15]} Nc6 {[%emt 0:00:00]} 5. c3 {[%emt 0:01:08]} Nf6 6. Bf4 {[%emt 0:00:35]} Bg4 {[%emt 0:00:59]} 7. Qb3 {[%emt 0:06:36]} Qd7 {[%emt 0:05:52]} 8. Ne2 {[%emt 0:08:31]} e6 {[%emt 0:02:51]} 9. O-O {[%emt 0:05:09]} Be7 {[%emt 0:01:47]} 10. Nd2 {[%emt 0:06:35]} Rc8 {[%emt 0:01:10]} 11. Rfe1 {[%emt 0:07:47]} O-O {[%emt 0:01:28]} 12. Ng3 {[%emt 0:04:16]} Nh5 {[%emt 0:01:22]} 13. Nxh5 {[%emt 0:00:41]} Bxh5 {[%emt 0:00:08]} 14. f3 {[%emt 0:04:44]} Bg6 {[%emt 0:02:07]} 15. Bxg6 {[%emt 0:00:56]} hxg6 {[%emt 0:00:12]} 16. Nf1 {[%emt 0:04:45]} Na5 {[%emt 0:01:24]} 17. Qd1 {[%emt 0:05:10]} Nc4 {[%emt 0:03:34]} 18. Qe2 {[%emt 0:00:34]} Qb5 {[%emt 0:03:35]} 19. Rab1 {[%emt 0:00:42]} Qa5 {[%emt 0:01:16]} 20. a3 {[%emt 0:00:28]} b5 {[%emt 0:02:26]} 21. Ne3 {[%emt 0:02:36]} Nxe3 {[%emt 0:01:58]} 22. Qxe3 {[%emt 0:00:40]} Rc4 {[%emt 0:00:46]} 23. Bg5 {[%emt 0:02:57]} Bd6 {[%emt 0:02:02]} 24. Bf4 {[%emt 0:00:25]} Qc7 {[%emt 0:01:49]} 25. Bxd6 {[%emt 0:00:25]} Qxd6 {[%emt 0:00:05]} 26. Qe5 {[%emt 0:02:52]} Qxe5 {[%emt 0:00:34]} 27. Rxe5 {[%emt 0:01:06]} a5 {[%emt 0:00:19]} 28. Re2 {[%emt 0:08:26]} b4 {[%emt 0:00:14]} 29. axb4 {[%emt 0:00:46]} axb4 {[%emt 0:00:06]} 30. Rc2 {[%emt 0:01:26]} Rfc8 {[%emt 0:00:26]} 31. Rbc1 {[%emt 0:00:22]} f6 {[%emt 0:00:29]} 32. f4 {[%emt 0:00:40]} g5 {[%emt 0:01:42]} 33. fxg5 {[%emt 0:02:27]} e5 {[%emt 0:00:46]} 34. gxf6 {[%emt 0:10:36]} gxf6 {[%emt 0:00:21]} 35. dxe5 {[%emt 0:00:16]} fxe5 {[%emt 0:00:06]} 36. Rd2 {[%emt 0:04:12]} d4 {[%emt 0:00:18]} 37. Rb1 {[%emt 0:01:01]} bxc3 {[%emt 0:00:11]} 38. bxc3 {[%emt 0:00:11]} Rxc3 {[%emt 0:00:19]} 39. Re1 {[%emt 0:01:51]} Rc1 {[%emt 0:00:46]} 40. Kf2 {[%emt 0:00:35]} Rxe1 {[%emt 0:00:09]} 41. Kxe1 {[%emt 0:30:06]} Kf7 {[%emt 0:30:20]} 42. Kf2 {[%emt 0:00:05]} Kf6 {[%emt 0:00:00]} 43. Kf3 {[%emt 0:00:00]} Rc3+ {[%emt 0:00:00]} 44. Ke2 {[%emt 0:00:00]} Kf5 {[%emt 0:00:00]} 45. Rd3 {[%emt 0:00:00]} Rc4 {[%emt 0:00:00]} 46. Rf3+ {[%emt 0:00:00]} Ke4 {[%emt 0:00:00]} 47. Rd3 {[%emt 0:00:00]} Rc2+ {[%emt 0:00:00]} 48. Rd2 {[%emt 0:00:00]} d3+ {[%emt 0:00:00]} 49. Kd1 {[%emt 0:00:00]} Rc4 {[%emt 0:00:00]} 50. h4 {[%emt 0:00:00]} Ke3 {[%emt 0:00:00]} 51. g3 {[%emt 0:00:00]} Ra4 {[%emt 0:00:00]} 52. Ke1 {[%emt 0:00:00]} Ra1+ {[%emt 0:00:00]} 53. Rd1 {[%emt 0:00:00]} d2+ {[%emt 0:00:00]} 54. Kf1 {[%emt 0:00:00]} Rxd1+ 0-1